fUST/lending_fUST_20260622
["ID","MTS","AMOUNT","RATE_DAILY","PERIOD"]
[426033572,1782126639000,-500.0,0.00012671,2]
[426033574,1782126639000,-602.0,0.00012671,2]
[426033570,1782126639000,-602.0,0.00012671,2]
[426033576,1782126639000,-500.0,0.00012671,2]
[426033577,1782126639000,-500.0,0.00012671,2]
[426033578,1782126639000,-500.0,0.00012671,2]
[426033579,1782126639000,-500.0,0.00012671,2]
[426033610,1782126639000,-14327.7866456,0.00013533,2]
[426033597,1782126639000,-171.00275813,0.00012671,2]
[426033616,1782126639000,-195.651,0.00013563,2]
[426033648,1782126639000,-500.0,0.00013698,2]
[426033645,1782126639000,-500.0,0.00013698,2]
[426033646,1782126639000,-500.0,0.00013698,2]
[426033650,1782126639000,-500.0,0.00013698,2]
[426033649,1782126639000,-524.63153344,0.00013698,2]
[426033652,1782126639000,-500.0,0.00013698,2]
[426033654,1782126639000,-194.72,0.00013698,2]
[426033653,1782126639000,-500.0,0.00013698,2]
[426033659,1782126639000,-500.0,0.00013698,2]
[426033655,1782126639000,-500.0,0.00013698,2]
[426033657,1782126639000,-500.0,0.00013698,2]
[426033656,1782126639000,-557.17378113,0.00013698,2]
[426033658,1782126639000,-500.0,0.00013698,2]
[426033660,1782126639000,-500.0,0.00013698,2]
[426033664,1782126639000,-500.0,0.00013698,2]
[426033661,1782126639000,-599.76142208,0.00013698,2]
[426033663,1782126639000,-500.0,0.00013698,2]
[426033662,1782126639000,-500.0,0.00013698,2]
[426033666,1782126639000,-500.0,0.00013698,2]
[426033665,1782126639000,-500.0,0.00013698,2]
[426033667,1782126639000,-500.0,0.00013698,2]
[426033668,1782126639000,-500.0,0.00013698,2]
[426033672,1782126639000,-1000.0,0.00013699,2]
[426033673,1782126639000,-151.0,0.00013699,2]
[426033670,1782126639000,-500.0,0.00013698,2]
[426033671,1782126639000,-239.88149511,0.00013698,2]
[426033611,1782126639000,-3196.9613288,0.00013561,2]
[426033647,1782126639000,-258.21945307,0.00013698,2]
[426033644,1782126639000,-500.0,0.00013698,2]
[426033651,1782126639000,-520.19816249,0.00013698,2]
[426033641,1782126639000,-151.0,0.000136,2]
[426033613,1782126639000,-160.0,0.00013561,2]
[426033614,1782126639000,-312.67307662,0.00013561,2]
[426033615,1782126639000,-745.0,0.00013563,2]
[426033617,1782126639000,-470.466,0.00013563,2]
[426033618,1782126639000,-1005.0,0.00013566,2]
[426033621,1782126639000,-1005.0,0.00013566,2]
[426033619,1782126639000,-1005.0,0.00013566,2]
[426033643,1782126639000,-500.0,0.00013698,2]
[426033622,1782126639000,-1005.0,0.00013566,2]
[426033623,1782126639000,-788.57135943,0.00013566,2]
[426033624,1782126639000,-713.3384932,0.00013567,2]
[426033626,1782126639000,-617.34314634,0.00013577,2]
[426033627,1782126639000,-1111.21766341,0.00013577,2]
[426033625,1782126639000,-156.80761648,0.00013577,2]
[426033620,1782126639000,-1005.0,0.00013566,2]
[426033669,1782126639000,-500.0,0.00013698,2]
[426033628,1782126639000,-381.8104637,0.00013577,2]
[426033642,1782126639000,-281.41102294,0.00013649,2]
[426033640,1782126639000,-151.0,0.000136,2]
[426033637,1782126639000,-1000.0,0.00013577,2]
[426033636,1782126639000,-1000.0,0.00013577,2]
[426033635,1782126639000,-1000.0,0.00013577,2]
[426033638,1782126639000,-1000.0,0.00013577,2]
[426033633,1782126639000,-1000.0,0.00013577,2]
[426033634,1782126639000,-1000.0,0.00013577,2]
[426033632,1782126639000,-1000.0,0.00013577,2]
[426033631,1782126639000,-1000.0,0.00013577,2]
[426033630,1782126639000,-1000.0,0.00013577,2]
[426033629,1782126639000,-1000.0,0.00013577,2]
[426033682,1782126640000,-151.0,0.00013699,2]
[426033687,1782126640000,-301.68276277,0.00013699,2]
[426033685,1782126640000,-151.0,0.00013699,2]
[426033683,1782126640000,-151.0,0.00013699,2]
[426033684,1782126640000,-151.0,0.00013699,2]
[426033686,1782126640000,-151.0,0.00013699,2]
[426033681,1782126640000,-151.0,0.00013699,2]
[426033676,1782126640000,-151.0,0.00013699,2]
[426033680,1782126640000,-151.0,0.00013699,2]
[426033678,1782126640000,-186.031812,0.00013699,2]
[426033674,1782126640000,-151.0,0.00013699,2]
[426033677,1782126640000,-151.0,0.00013699,2]
[426033675,1782126640000,-151.0,0.00013699,2]
[426033688,1782126640000,-653.58391594,0.00013699,2]
[426033679,1782126640000,-151.0,0.00013699,2]
[426033689,1782126640000,-500.0,0.00013699,2]
[426033709,1782126640000,-8246.18349024,0.00013961,2]
[426033695,1782126640000,-500.0,0.00013699,2]
[426033691,1782126640000,-500.0,0.00013699,2]
[426033705,1782126640000,-3285.36874207,0.0001392,2]
[426033703,1782126640000,-436.35481566,0.00013801,2]
[426033702,1782126640000,-1975.49806828,0.00013801,2]
[426033699,1782126640000,-581.16959202,0.00013699,2]
[426033701,1782126640000,-797.0,0.000138,2]
[426033698,1782126640000,-500.0,0.00013699,2]
[426033706,1782126640000,-460147.31590301,0.00013961,2]
[426033694,1782126640000,-500.0,0.00013699,2]
[426033693,1782126640000,-500.0,0.00013699,2]
[426033692,1782126640000,-500.0,0.00013699,2]
[426033690,1782126640000,-500.0,0.00013699,2]
[426033697,1782126640000,-500.0,0.00013699,2]
[426033700,1782126640000,-174.93548849,0.000138,2]
[426033696,1782126640000,-500.0,0.00013699,2]
[426033857,1782126641000,-314.00481591,0.00014284,2]
[426033861,1782126641000,-3086.71573169,0.00014605,2]
[426033863,1782126641000,-681.12259507,0.00014605,2]
[426033883,1782126641000,-864.0,0.00015518,2]
[426033867,1782126641000,-240.94946719,0.00014887,7]
[426033881,1782126641000,-260.78,0.00015342,2]
[426033877,1782126641000,-302.382422,0.00015108,2]
[426033879,1782126641000,-869.55182163,0.00015276,2]
[426033871,1782126641000,-530.0,0.0001495,2]
[426033859,1782126641000,-302.382422,0.00014583,2]
[426033865,1782126641000,-1160.62804595,0.00014778,3]
[426033850,1782126641000,-1419.0,0.00013976,2]
[426033842,1782126641000,-150.93,0.00013976,2]
[426033853,1782126641000,-302.382422,0.00014057,2]
[426033851,1782126641000,-1842.0,0.00013976,2]
[426033846,1782126641000,-268.876,0.00013976,2]
[426033840,1782126641000,-232.959,0.00013976,2]
[426033855,1782126641000,-720.0,0.00014107,2]
[426033844,1782126641000,-250.0,0.00013976,2]
[426033835,1782126641000,-756.3,0.00013961,2]
[426033836,1782126641000,-150.491,0.00013976,2]
[426033838,1782126641000,-151.263,0.00013976,2]
[426033833,1782126641000,-200.0,0.00013961,2]
[426033831,1782126641000,-60151.44985536,0.00013961,2]
[426033875,1782126641000,-190.325517,0.00015068,2]
[426033848,1782126641000,-961.112,0.00013976,2]
[426033873,1782126641000,-500.0,0.00015036,2]
[426033937,1782126641000,-1757.749462,0.0001589,2]
[426033888,1782126641000,-212.54,0.00015615,2]
[426033939,1782126641000,-1572.44851316,0.0001589,2]
[426033869,1782126641000,-1199.25170719,0.000149,2]
[426033935,1782126641000,-1757.749462,0.0001589,2]
[426033927,1782126641000,-1757.749462,0.0001589,2]
[426033925,1782126641000,-1757.749462,0.0001589,2]
[426033921,1782126641000,-1757.749462,0.0001589,2]
[426033933,1782126641000,-1757.749462,0.0001589,2]
[426033931,1782126641000,-1757.749462,0.0001589,2]
[426033929,1782126641000,-1757.749462,0.0001589,2]
[426033919,1782126641000,-1757.749462,0.0001589,2]
[426033917,1782126641000,-1757.749462,0.0001589,2]
[426033915,1782126641000,-1757.749462,0.0001589,2]
[426033913,1782126641000,-1757.749462,0.0001589,2]
[426033923,1782126641000,-1757.749462,0.0001589,2]
[426033909,1782126641000,-1757.749462,0.0001589,2]
[426033890,1782126641000,-327.0061742,0.00015725,2]
[426033911,1782126641000,-1757.749462,0.0001589,2]
[426033887,1782126641000,-186.69,0.00015615,2]
[426033885,1782126641000,-500.0,0.00015588,2]
[426033895,1782126641000,-1010.0,0.000158,2]
[426033892,1782126641000,-912.44936648,0.00015766,2]
[426033899,1782126641000,-2695.17037639,0.000158,2]
[426033903,1782126641000,-553.61675325,0.00015839,2]
[426033901,1782126641000,-500.0,0.00015827,2]
[426033905,1782126641000,-569.40059068,0.00015882,2]
[426033907,1782126641000,-155.49,0.00015887,2]
[426033896,1782126641000,-860.4458057,0.000158,2]
[426034148,1782126643000,-517.29716423,0.00016438,2]
[426034150,1782126643000,-533.90557157,0.00016438,2]
[426034152,1782126643000,-186.4349553,0.00016438,2]
[426034160,1782126643000,-497.77133802,0.00016438,2]
[426034156,1782126643000,-505.81635335,0.00016438,2]
[426034154,1782126643000,-517.85708096,0.00016438,2]
[426034162,1782126643000,-540.2989521,0.00016438,2]
[426034170,1782126643000,-500.0,0.00016438,2]
[426034166,1782126643000,-512.76213786,0.00016438,2]
[426034164,1782126643000,-514.68909707,0.00016438,2]
[426034168,1782126643000,-509.81847495,0.00016438,2]
[426034172,1782126643000,-518.55886632,0.00016438,2]
[426034174,1782126643000,-508.23404795,0.00016438,2]
[426034176,1782126643000,-500.0,0.00016438,2]
[426034186,1782126643000,-509.37924875,0.00016438,2]
[426034146,1782126643000,-531.47085892,0.00016438,2]
[426034158,1782126643000,-540.41361401,0.00016438,2]
[426034144,1782126643000,-536.56076345,0.00016438,2]
[426034115,1782126643000,-847.23353467,0.000159,2]
[426034135,1782126643000,-515.59597155,0.00016438,2]
[426034189,1782126643000,-500.0,0.00016438,2]
[426034099,1782126643000,-185.30094884,0.0001589,2]
[426034102,1782126643000,-1633.86213451,0.0001589,2]
[426034101,1782126643000,-1757.749462,0.0001589,2]
[426034109,1782126643000,-1757.749459,0.0001589,2]
[426034106,1782126643000,-123.88732749,0.0001589,2]
[426034108,1782126643000,-1757.749462,0.0001589,2]
[426034117,1782126643000,-968.12913304,0.0001592,2]
[426034120,1782126643000,-236.43844437,0.00015933,2]
[426034122,1782126643000,-3403.82114528,0.00016,2]
[426034123,1782126643000,-258.141798,0.00016147,2]
[426034129,1782126643000,-655.10210093,0.00016344,2]
[426034125,1782126643000,-156.0,0.00016162,2]
[426034140,1782126643000,-500.0,0.00016438,2]
[426034127,1782126643000,-158.42,0.00016295,2]
[426034134,1782126643000,-506.05266725,0.00016438,2]
[426034132,1782126643000,-508.87633713,0.00016438,2]
[426034142,1782126643000,-516.76829398,0.00016438,2]
[426034187,1782126643000,-513.91923433,0.00016438,2]
[426034138,1782126643000,-509.90028867,0.00016438,2]
[426034180,1782126643000,-60.39827338,0.00016438,2]
[426034234,1782126643000,-111.4315081,0.00016438,2]
[426034231,1782126643000,-514.69082796,0.00016438,2]
[426034227,1782126643000,-1151.96,0.00016438,2]
[426034237,1782126643000,-538.2410348,0.00016438,2]
[426034229,1782126643000,-536.78379515,0.00016438,2]
[426034239,1782126643000,-517.53718575,0.00016438,2]
[426034241,1782126643000,-502.36659461,0.00016438,2]
[426034243,1782126643000,-500.0,0.00016438,2]
[426034249,1782126643000,-501.24644021,0.00016438,2]
[426034245,1782126643000,-512.64,0.00016438,2]
[426034251,1782126643000,-536.15773286,0.00016438,2]
[426034247,1782126643000,-500.0,0.00016438,2]
[426034253,1782126643000,-500.0,0.00016438,2]
[426034257,1782126643000,-516.62887488,0.00016438,2]
[426034259,1782126643000,-524.77538924,0.00016438,2]
[426034261,1782126643000,-500.0,0.00016438,2]
[426034178,1782126643000,-439.60172662,0.00016438,2]
[426034236,1782126643000,-392.15695571,0.00016438,2]
[426034225,1782126643000,-519.44257357,0.00016438,2]
[426034255,1782126643000,-511.02557652,0.00016438,2]
[426034223,1782126643000,-504.35407808,0.00016438,2]
[426034221,1782126643000,-566.43,0.00016438,2]
[426034181,1782126643000,-500.0,0.00016438,2]
[426034184,1782126643000,-500.0,0.00016438,2]
[426034191,1782126643000,-538.13862195,0.00016438,2]
[426034197,1782126643000,-555.91919028,0.00016438,2]
[426034195,1782126643000,-500.0,0.00016438,2]
[426034199,1782126643000,-500.0,0.00016438,2]
[426034203,1782126643000,-523.7840089,0.00016438,2]
[426034193,1782126643000,-510.6502553,0.00016438,2]
[426034209,1782126643000,-501.10413177,0.00016438,2]
[426034207,1782126643000,-504.90183492,0.00016438,2]
[426034215,1782126643000,-525.99285398,0.00016438,2]
[426034211,1782126643000,-514.63134332,0.00016438,2]
[426034205,1782126643000,-500.0,0.00016438,2]
[426034213,1782126643000,-500.0,0.00016438,2]
[426034217,1782126643000,-500.0,0.00016438,2]
[426034201,1782126643000,-514.28220867,0.00016438,2]
[426034219,1782126643000,-500.0,0.00016438,2]
[426034294,1782126644000,-511.07216611,0.00016438,2]
[426034296,1782126644000,-502.6395356,0.00016438,2]
[426034300,1782126644000,-512.44075151,0.00016438,2]
[426034298,1782126644000,-515.79662526,0.00016438,2]
[426034314,1782126644000,-697.73,0.00016438,2]
[426034304,1782126644000,-542.52598696,0.00016438,2]
[426034318,1782126644000,-500.0,0.00016438,2]
[426034302,1782126644000,-500.0,0.00016438,2]
[426034312,1782126644000,-500.0,0.00016438,2]
[426034308,1782126644000,-500.0,0.00016438,2]
[426034282,1782126644000,-500.0,0.00016438,2]
[426034306,1782126644000,-500.0,0.00016438,2]
[426034316,1782126644000,-500.0,0.00016438,2]
[426034286,1782126644000,-500.0,0.00016438,2]
[426034272,1782126644000,-504.26181459,0.00016438,2]
[426034280,1782126644000,-528.27497389,0.00016438,2]
[426034292,1782126644000,-511.72329225,0.00016438,2]
[426034288,1782126644000,-163.41328774,0.00016438,2]
[426034290,1782126644000,-500.0,0.00016438,2]
[426034278,1782126644000,-511.46808548,0.00016438,2]
[426034274,1782126644000,-509.20323119,0.00016438,2]
[426034276,1782126644000,-512.20856469,0.00016438,2]
[426034270,1782126644000,-502.18377223,0.00016438,2]
[426034266,1782126644000,-500.0,0.00016438,2]
[426034268,1782126644000,-510.38727902,0.00016438,2]
[426034264,1782126644000,-500.0,0.00016438,2]
[426034263,1782126644000,-500.0,0.00016438,2]
[426034310,1782126644000,-500.0,0.00016438,2]
[426034284,1782126644000,-511.86711066,0.00016438,2]
[426034320,1782126644000,-500.0,0.00016438,2]
[426034323,1782126644000,-550.61094042,0.00016438,2]
[426034324,1782126644000,-500.0,0.00016438,2]
[426034379,1782126644000,-430.09460885,0.00016438,2]
[426034376,1782126644000,-69.90539115,0.00016438,2]
[426034370,1782126644000,-263.09216544,0.00016438,2]
[426034374,1782126644000,-500.0,0.00016438,2]
[426034372,1782126644000,-500.0,0.00016438,2]
[426034381,1782126644000,-198.03015995,0.00016438,2]
[426034369,1782126644000,-228.05075229,0.00016438,2]
[426034364,1782126644000,-500.0,0.00016438,2]
[426034365,1782126644000,-68.94942671,0.00016438,2]
[426034366,1782126644000,-431.05057329,0.00016438,2]
[426034362,1782126644000,-212.03649042,0.00016438,2]
[426034363,1782126644000,-500.0,0.00016438,2]
[426034358,1782126644000,-500.0,0.00016438,2]
[426034360,1782126644000,-500.0,0.00016438,2]
[426034367,1782126644000,-271.94924771,0.00016438,2]
[426034353,1782126644000,-841.17,0.00016438,2]
[426034355,1782126644000,-500.0,0.00016438,2]
[426034329,1782126644000,-500.0,0.00016438,2]
[426034327,1782126644000,-500.0,0.00016438,2]
[426034341,1782126644000,-604.0,0.00016438,2]
[426034345,1782126644000,-500.0,0.00016438,2]
[426034343,1782126644000,-500.0,0.00016438,2]
[426034331,1782126644000,-660.28,0.00016438,2]
[426034335,1782126644000,-699.12,0.00016438,2]
[426034337,1782126644000,-1313.33,0.00016438,2]
[426034339,1782126644000,-500.0,0.00016438,2]
[426034347,1782126644000,-500.0,0.00016438,2]
[426034349,1782126644000,-500.0,0.00016438,2]
[426034351,1782126644000,-500.0,0.00016438,2]
[426034333,1782126644000,-500.0,0.00016438,2]
[426034663,1782126646000,-327.0061742,0.00016547,2]
[426034650,1782126646000,-506.87724541,0.00016438,2]
[426034654,1782126646000,-500.0,0.00016438,2]
[426034652,1782126646000,-370.23995074,0.00016438,2]
[426034648,1782126646000,-500.0,0.00016438,2]
[426034656,1782126646000,-509.89340614,0.00016438,2]
[426034660,1782126646000,-500.0,0.00016438,2]
[426034662,1782126646000,-167.209999,0.00016438,2]
[426034676,1782126646000,-500.0,0.00016618,2]
[426034667,1782126646000,-186.0,0.00016563,2]
[426034669,1782126646000,-445.0,0.00016563,2]
[426034671,1782126646000,-160.0,0.0001659,2]
[426034673,1782126646000,-266.110998,0.0001659,2]
[426034680,1782126646000,-172.094533,0.00016646,2]
[426034678,1782126646000,-172.014651,0.00016646,2]
[426034674,1782126646000,-372.221996,0.0001659,2]
[426034665,1782126646000,-745.0,0.00016563,2]
[426034646,1782126646000,-500.0,0.00016438,2]
[426034611,1782126646000,-408.43672559,0.00016438,2]
[426034644,1782126646000,-500.0,0.00016438,2]
[426034602,1782126646000,-301.96984005,0.00016438,2]
[426034607,1782126646000,-5529.9,0.00016438,2]
[426034604,1782126646000,-500.0,0.00016438,2]
[426034605,1782126646000,-512.11882924,0.00016438,2]
[426034609,1782126646000,-123.41133071,0.00016438,2]
[426034684,1782126646000,-223.792122,0.00016646,2]
[426034620,1782126646000,-506.38176209,0.00016438,2]
[426034616,1782126646000,-500.0,0.00016438,2]
[426034658,1782126646000,-514.83991479,0.00016438,2]
[426034614,1782126646000,-523.97702816,0.00016438,2]
[426034618,1782126646000,-717.31,0.00016438,2]
[426034622,1782126646000,-514.19652513,0.00016438,2]
[426034625,1782126646000,-500.0,0.00016438,2]
[426034624,1782126646000,-908.1,0.00016438,2]
[426034629,1782126646000,-94.08441414,0.00016438,2]
[426034627,1782126646000,-511.94295813,0.00016438,2]
[426034640,1782126646000,-392.30763041,0.00016438,2]
[426034642,1782126646000,-500.0,0.00016438,2]
[426034612,1782126646000,-500.0,0.00016438,2]
[426034686,1782126646000,-212.8888,0.00016646,2]
[426034718,1782126646000,-1151.96,0.00016712,2]
[426034690,1782126646000,-500.0,0.00016712,2]
[426034736,1782126646000,-500.0,0.00016712,2]
[426034739,1782126646000,-500.0,0.00016712,2]
[426034738,1782126646000,-500.0,0.00016712,2]
[426034734,1782126646000,-500.0,0.00016712,2]
[426034752,1782126646000,-500.0,0.00016712,2]
[426034754,1782126646000,-500.0,0.00016712,2]
[426034745,1782126646000,-500.0,0.00016712,2]
[426034749,1782126646000,-697.73,0.00016712,2]
[426034741,1782126646000,-500.0,0.00016712,2]
[426034747,1782126646000,-500.0,0.00016712,2]
[426034743,1782126646000,-500.0,0.00016712,2]
[426034757,1782126646000,-500.0,0.00016712,2]
[426034761,1782126646000,-660.28,0.00016712,2]
[426034756,1782126646000,-500.0,0.00016712,2]
[426034763,1782126646000,-500.0,0.00016712,2]
[426034759,1782126646000,-500.0,0.00016712,2]
[426034688,1782126646000,-180.04321037,0.00016655,2]
[426034731,1782126646000,-500.0,0.00016712,2]
[426034732,1782126646000,-500.0,0.00016712,2]
[426034750,1782126646000,-500.0,0.00016712,2]
[426034725,1782126646000,-233.6102935,0.00016712,2]
[426034701,1782126646000,-500.0,0.00016712,2]
[426034720,1782126646000,-500.0,0.00016712,2]
[426034694,1782126646000,-500.0,0.00016712,2]
[426034702,1782126646000,-500.0,0.00016712,2]
[426034692,1782126646000,-540.41361401,0.00016712,2]
[426034697,1782126646000,-591.27245898,0.00016712,2]
[426034699,1782126646000,-500.0,0.00016712,2]
[426034706,1782126646000,-500.0,0.00016712,2]
[426034704,1782126646000,-500.0,0.00016712,2]
[426034695,1782126646000,-500.0,0.00016712,2]
[426034708,1782126646000,-500.0,0.00016712,2]
[426034712,1782126646000,-500.0,0.00016712,2]
[426034714,1782126646000,-500.0,0.00016712,2]
[426034727,1782126646000,-500.0,0.00016712,2]
[426034723,1782126646000,-500.0,0.00016712,2]
[426034729,1782126646000,-295.58354671,0.00016712,2]
[426034722,1782126646000,-512.64,0.00016712,2]
[426034710,1782126646000,-500.0,0.00016712,2]
[426034716,1782126646000,-566.43,0.00016712,2]
[426034829,1782126647000,-152.418649,0.00016941,2]
[426034827,1782126647000,-152.418649,0.00016941,2]
[426034825,1782126647000,-152.418649,0.00016941,2]
[426034823,1782126647000,-152.418649,0.00016941,2]
[426034820,1782126647000,-152.418649,0.00016941,2]
[426034812,1782126647000,-167.958766,0.00016941,2]
[426034816,1782126647000,-205.118789,0.00016941,2]
[426034814,1782126647000,-167.958766,0.00016941,2]
[426034810,1782126647000,-167.958766,0.00016941,2]
[426034836,1782126647000,-152.418649,0.00016941,2]
[426034809,1782126647000,-167.958766,0.00016941,2]
[426034818,1782126647000,-152.418649,0.00016941,2]
[426034838,1782126647000,-152.418649,0.00016941,2]
[426034856,1782126647000,-152.418649,0.00016941,2]
[426034835,1782126647000,-152.418649,0.00016941,2]
[426034831,1782126647000,-152.418649,0.00016941,2]
[426034840,1782126647000,-152.418649,0.00016941,2]
[426034841,1782126647000,-152.418649,0.00016941,2]
[426034843,1782126647000,-152.418649,0.00016941,2]
[426034845,1782126647000,-152.418649,0.00016941,2]
[426034852,1782126647000,-152.418649,0.00016941,2]
[426034854,1782126647000,-152.418649,0.00016941,2]
[426034859,1782126647000,-152.418649,0.00016941,2]
[426034858,1782126647000,-152.418649,0.00016941,2]
[426034861,1782126647000,-152.418649,0.00016941,2]
[426034863,1782126647000,-152.418649,0.00016941,2]
[426034807,1782126647000,-167.958766,0.00016941,2]
[426034833,1782126647000,-152.418649,0.00016941,2]
[426034806,1782126647000,-500.0,0.00016712,2]
[426034785,1782126647000,-500.0,0.00016712,2]
[426034805,1782126647000,-390.55323901,0.00016712,2]
[426034865,1782126647000,-152.418649,0.00016941,2]
[426034765,1782126647000,-699.12,0.00016712,2]
[426034769,1782126647000,-500.0,0.00016712,2]
[426034767,1782126647000,-1313.33,0.00016712,2]
[426034776,1782126647000,-500.0,0.00016712,2]
[426034771,1782126647000,-604.0,0.00016712,2]
[426034778,1782126647000,-500.0,0.00016712,2]
[426034774,1782126647000,-500.0,0.00016712,2]
[426034772,1782126647000,-500.0,0.00016712,2]
[426034780,1782126647000,-547.37029648,0.00016712,2]
[426034783,1782126647000,-500.0,0.00016712,2]
[426034782,1782126647000,-841.17,0.00016712,2]
[426034787,1782126647000,-500.0,0.00016712,2]
[426034804,1782126647000,-500.0,0.00016712,2]
[426034789,1782126647000,-500.0,0.00016712,2]
[426034791,1782126647000,-384.43128756,0.00016712,2]
[426034792,1782126647000,-500.0,0.00016712,2]
[426034793,1782126647000,-500.0,0.00016712,2]
[426034796,1782126647000,-500.0,0.00016712,2]
[426034794,1782126647000,-500.0,0.00016712,2]
[426034795,1782126647000,-500.0,0.00016712,2]
[426034797,1782126647000,-500.0,0.00016712,2]
[426034799,1782126647000,-500.0,0.00016712,2]
[426034798,1782126647000,-5529.9,0.00016712,2]
[426034802,1782126647000,-500.0,0.00016712,2]
[426034800,1782126647000,-717.31,0.00016712,2]
[426034803,1782126647000,-500.0,0.00016712,2]
[426034801,1782126647000,-908.1,0.00016712,2]
[426034790,1782126647000,-500.0,0.00016712,2]
[426034867,1782126647000,-152.418649,0.00016941,2]
[426034822,1782126647000,-152.418649,0.00016941,2]
[426034871,1782126647000,-152.418649,0.00016941,2]
[426034934,1782126647000,-500.0,0.00016986,2]
[426034930,1782126647000,-500.0,0.00016986,2]
[426034932,1782126647000,-500.0,0.00016986,2]
[426034936,1782126647000,-500.0,0.00016986,2]
[426034950,1782126647000,-512.64,0.00016986,2]
[426034952,1782126647000,-500.0,0.00016986,2]
[426034938,1782126647000,-500.0,0.00016986,2]
[426034946,1782126647000,-1151.96,0.00016986,2]
[426034944,1782126647000,-566.43,0.00016986,2]
[426034940,1782126647000,-500.0,0.00016986,2]
[426034948,1782126647000,-500.0,0.00016986,2]
[426034953,1782126647000,-500.0,0.00016986,2]
[426034955,1782126647000,-500.0,0.00016986,2]
[426034928,1782126647000,-500.0,0.00016986,2]
[426034961,1782126647000,-500.0,0.00016986,2]
[426034959,1782126647000,-562.28759329,0.00016986,2]
[426034963,1782126647000,-137.81205592,0.00016986,2]
[426034965,1782126647000,-362.18794408,0.00016986,2]
[426034976,1782126647000,-500.0,0.00016986,2]
[426034967,1782126647000,-500.0,0.00016986,2]
[426034969,1782126647000,-500.0,0.00016986,2]
[426034972,1782126647000,-500.0,0.00016986,2]
[426034971,1782126647000,-500.0,0.00016986,2]
[426034974,1782126647000,-697.73,0.00016986,2]
[426034978,1782126647000,-500.0,0.00016986,2]
[426034980,1782126647000,-500.0,0.00016986,2]
[426034981,1782126647000,-500.0,0.00016986,2]
[426034869,1782126647000,-152.418649,0.00016941,2]
[426034957,1782126647000,-500.0,0.00016986,2]
[426034924,1782126647000,-500.0,0.00016986,2]
[426034942,1782126647000,-500.0,0.00016986,2]
[426034921,1782126647000,-500.0,0.00016986,2]
[426034878,1782126647000,-152.418649,0.00016941,2]
[426034926,1782126647000,-500.0,0.00016986,2]
[426034880,1782126647000,-152.418649,0.00016941,2]
[426034872,1782126647000,-152.418649,0.00016941,2]
[426034874,1782126647000,-152.418649,0.00016941,2]
[426034881,1782126647000,-152.418649,0.00016941,2]
[426034883,1782126647000,-152.418649,0.00016941,2]
[426034885,1782126647000,-152.418649,0.00016941,2]
[426034887,1782126647000,-152.418649,0.00016941,2]
[426034889,1782126647000,-152.418649,0.00016941,2]
[426034892,1782126647000,-152.418649,0.00016941,2]
[426034902,1782126647000,-152.418649,0.00016941,2]
[426034903,1782126647000,-152.418649,0.00016941,2]
[426034900,1782126647000,-152.418649,0.00016941,2]
[426034891,1782126647000,-152.418649,0.00016941,2]
[426034876,1782126647000,-152.418649,0.00016941,2]
[426034896,1782126647000,-152.418649,0.00016941,2]
[426034894,1782126647000,-152.418649,0.00016941,2]
[426034919,1782126647000,-1842.0,0.00016976,2]
[426034917,1782126647000,-1419.0,0.00016976,2]
[426034915,1782126647000,-958.0,0.00016976,2]
[426034909,1782126647000,-152.418649,0.00016941,2]